fUSD/lending_fUSD_20241111
["ID","MTS","AMOUNT","RATE_DAILY","PERIOD"]
[341969793,1731334245299,-500.0,0.00013698,2]
[341969794,1731334245308,-1167.96,0.00013698,2]
[341969795,1731334245317,-500.0,0.00013698,2]
[341969796,1731334245327,-1167.96,0.00013698,2]
[341969797,1731334245336,-1167.96,0.00013698,2]
[341969798,1731334245346,-500.0,0.00013698,2]
[341969799,1731334245355,-1167.96,0.00013698,2]
[341969800,1731334245365,-500.0,0.00013698,2]
[341969801,1731334245374,-1167.96,0.00013698,2]
[341969802,1731334245383,-500.0,0.00013698,2]
[341969803,1731334245392,-1167.96,0.00013698,2]
[341969804,1731334245401,-500.0,0.00013698,2]
[341969805,1731334245410,-1167.96,0.00013698,2]
[341969806,1731334245420,-378.15708041,0.00013698,2]
[341969807,1731334245429,-1167.96,0.00013698,2]
[341969808,1731334245439,-1168.0627752,0.00013698,2]
[341969809,1731334245448,-500.0,0.00013698,2]
[341969810,1731334245458,-500.0,0.00013698,2]
[341969811,1731334245467,-500.0,0.00013698,2]
[341969812,1731334245476,-500.0,0.00013698,2]
[341969813,1731334245485,-500.0,0.00013698,2]
[341969814,1731334245494,-500.0,0.00013698,2]
[341969815,1731334245503,-500.08,0.00013698,2]
[341969816,1731334245514,-500.08,0.00013698,2]
[341969817,1731334245523,-500.0,0.00013698,2]
[341969818,1731334245571,-500.0,0.00013698,2]
[341969819,1731334245581,-500.0,0.00013698,2]
[341969820,1731334245591,-500.0,0.00013698,2]
[341969821,1731334245600,-500.0,0.00013698,2]
[341969822,1731334245610,-604.4,0.00013698,2]
[341969823,1731334245619,-5203.93,0.00013698,2]
[341969824,1731334245629,-5203.93,0.00013698,2]
[341969825,1731334245638,-5203.93,0.00013698,2]
[341969826,1731334245647,-500.0,0.00013698,2]
[341969827,1731334245656,-370.5,0.00013698,2]
[341969828,1731334245666,-500.0,0.00013698,2]
[341969829,1731334245676,-1125.0,0.00013698,2]
[341969830,1731334245685,-500.0,0.00013698,2]
[341969831,1731334245695,-500.0,0.00013698,2]
[341969832,1731334245704,-500.0,0.00013698,2]
[341969833,1731334245714,-500.0,0.00013698,2]
[341969834,1731334245723,-500.0,0.00013698,2]
[341969835,1731334245733,-421.0090444,0.00013698,2]
[341969836,1731334245743,-565.9,0.00013698,2]
[341969837,1731334245752,-565.9,0.00013698,2]
[341969838,1731334245764,-565.9,0.00013698,2]
[341969839,1731334245773,-500.0,0.00013698,2]
[341969840,1731334245782,-500.0,0.00013698,2]
[341969841,1731334245791,-500.0,0.00013698,2]
[341969842,1731334245800,-500.0,0.00013698,2]
[341969843,1731334245810,-500.0,0.00013698,2]
[341969844,1731334245819,-500.0,0.00013698,2]
[341969845,1731334245829,-500.0,0.00013698,2]
[341969846,1731334245838,-500.0,0.00013698,2]
[341969848,1731334245848,-500.0,0.00013698,2]
[341969849,1731334245857,-500.0,0.00013698,2]
[341969851,1731334245866,-339.66987515,0.00013698,2]
[341969852,1731334245875,-500.0,0.00013698,2]
[341969853,1731334245885,-500.0,0.00013698,2]
[341969854,1731334245894,-500.0,0.00013698,2]
[341969855,1731334245906,-500.0,0.00013698,2]
[341969856,1731334245916,-500.0,0.00013698,2]
[341969857,1731334245925,-500.0,0.00013698,2]
[341969858,1731334245935,-500.0,0.00013698,2]
[341969859,1731334245945,-500.0,0.00013698,2]
[341969860,1731334245954,-500.0,0.00013698,2]
[341969861,1731334245964,-500.0,0.00013698,2]
[341969862,1731334245973,-500.0,0.00013698,2]
[341969863,1731334245984,-500.0,0.00013698,2]
[341969865,1731334245994,-500.0,0.00013698,2]
[341969867,1731334246005,-520.90734084,0.00013698,2]
[341969868,1731334246020,-500.0,0.00013698,2]
[341969870,1731334246031,-500.0,0.00013698,2]
[341969871,1731334246042,-500.0,0.00013698,2]
[341969872,1731334246052,-500.0,0.00013698,2]
[341969873,1731334246061,-500.0,0.00013698,2]
[341969874,1731334246071,-500.0,0.00013698,2]
[341969875,1731334246080,-500.0,0.00013698,2]
[341969876,1731334246092,-500.0,0.00013698,2]
[341969877,1731334246109,-500.0,0.00013698,2]
[341969878,1731334246119,-500.0,0.00013698,2]
[341969879,1731334246129,-345.97877456,0.00013698,2]
[341969880,1731334246140,-500.0,0.00013698,2]
[341969881,1731334246150,-500.0,0.00013698,2]
[341969882,1731334246160,-500.0,0.00013698,2]
[341969883,1731334246171,-500.0,0.00013698,2]
[341969884,1731334246181,-500.0,0.00013698,2]
[341969885,1731334246191,-500.0,0.00013698,2]
[341969886,1731334246202,-500.0,0.00013698,2]
[341969887,1731334246213,-569.90952019,0.00013698,2]
[341969888,1731334246223,-500.0,0.00013698,2]
[341969889,1731334246234,-500.0,0.00013698,2]
[341969890,1731334246244,-500.0,0.00013698,2]
[341969891,1731334246253,-500.0,0.00013698,2]
[341969892,1731334246269,-493.64113291,0.00013698,2]
[341969893,1731334246279,-755.62,0.00013698,2]
[341969894,1731334246289,-755.62,0.00013698,2]
[341969895,1731334246299,-755.62,0.00013698,2]
[341969896,1731334246309,-500.0,0.00013698,2]
[341969897,1731334246320,-500.0,0.00013698,2]
[341969898,1731334246331,-500.0,0.00013698,2]
[341969899,1731334246341,-500.0,0.00013698,2]
[341969900,1731334246351,-239.34419932,0.00013698,2]
[341969901,1731334246361,-500.0,0.00013698,2]
[341969902,1731334246371,-500.0,0.00013698,2]
[341969903,1731334246381,-500.0,0.00013698,2]
[341969904,1731334246392,-500.0,0.00013698,2]
[341969905,1731334246403,-500.0,0.00013698,2]
[341969906,1731334246414,-500.0,0.00013698,2]
[341969907,1731334246424,-500.0,0.00013698,2]
[341969908,1731334246435,-566.77830693,0.00013698,2]
[341969909,1731334246445,-500.0,0.00013698,2]
[341969910,1731334246456,-500.0,0.00013698,2]
[341969911,1731334246466,-500.0,0.00013698,2]
[341969912,1731334246476,-538.24123076,0.00013698,2]
[341969913,1731334246486,-500.0,0.00013698,2]
[341969914,1731334246495,-500.0,0.00013698,2]
[341969915,1731334246509,-500.0,0.00013698,2]
[341969916,1731334246519,-500.0,0.00013698,2]
[341969917,1731334246529,-500.0,0.00013698,2]
[341969918,1731334246539,-500.0,0.00013698,2]
[341969919,1731334246549,-500.0,0.00013698,2]
[341969920,1731334246559,-253.95361469,0.00013698,2]
[341969921,1731334246569,-500.0,0.00013698,2]
[341969922,1731334246578,-468.69988182,0.00013698,2]
[341969923,1731334246589,-502.27764946,0.00013698,2]
[341969924,1731334246599,-500.0,0.00013698,2]
[341969925,1731334246609,-500.0,0.00013698,2]
[341969926,1731334246619,-500.0,0.00013698,2]
[341969927,1731334246628,-500.0,0.00013698,2]
[341969928,1731334246638,-150.0,0.00013699,2]
[341969929,1731334246648,-200.0,0.000137,2]
[341969930,1731334246658,-3000.0,0.000137,2]
[341969931,1731334246668,-500.666046,0.000137,2]
[341969932,1731334246677,-2500.0,0.00013824,2]
[341969933,1731334246688,-200.0,0.00013835,2]
[341969934,1731334246698,-500.0,0.00013876,2]
[341969935,1731334246708,-500.0,0.00013899,2]
[341969936,1731334246718,-5203.93,0.00013899,2]
[341969937,1731334246728,-500.0,0.00013899,2]
[341969938,1731334246739,-565.9,0.00013899,2]
[341969939,1731334246749,-500.0,0.00013899,2]
[341969940,1731334246761,-500.0,0.00013899,2]
[341969941,1731334246772,-500.0,0.00013899,2]
[341969942,1731334246782,-500.0,0.00013899,2]
[341969943,1731334246792,-500.0,0.00013899,2]
[341969944,1731334246803,-755.62,0.00013899,2]
[341969945,1731334246812,-832.257,0.000139,2]
[341969946,1731334246822,-167.086,0.000139,2]
[341969947,1731334246832,-164.88903517,0.000139,2]
[341969948,1731334246842,-164.88,0.000139,2]
[341969949,1731334246851,-18595.4229132,0.000139,2]
[341969950,1731334246861,-150.0,0.0001394,2]
[341969951,1731334246870,-500.0,0.00013972,2]
[341969952,1731334246880,-500.0,0.00013972,2]
[341969953,1731334246890,-500.0,0.00013972,2]
[341969954,1731334246900,-500.0,0.00013972,2]
[341969955,1731334246911,-500.08,0.00013972,2]
[341969956,1731334246922,-500.0,0.00013972,2]
[341969957,1731334246934,-500.0,0.00013972,2]
[341969958,1731334246944,-500.0,0.00013972,2]
[341969959,1731334246953,-500.0,0.00013973,2]
[341969960,1731334246963,-500.0,0.00013973,2]
[341969961,1731334246975,-226.83971483,0.00013973,2]
[341969962,1731334246985,-500.0,0.00013973,2]
[341969963,1731334246998,-500.0,0.00013973,2]
[341969964,1731334247011,-331.01118003,0.00013973,2]
[341969965,1731334247021,-500.0,0.00013973,2]
[341969966,1731334247031,-500.0,0.00013973,2]
[341969967,1731334247042,-500.0,0.00013973,2]
[341969968,1731334247053,-500.0,0.00013973,2]
[341969969,1731334247063,-512.98101377,0.00013973,2]
[341969970,1731334247073,-279.04239122,0.00013973,2]
[341969971,1731334247083,-200.0,0.00013973,2]
[341969972,1731334247092,-500.0,0.00013998,2]
[341969973,1731334247102,-500.0,0.00013998,2]
[341969974,1731334247112,-500.0,0.00013998,2]
[341969975,1731334247122,-577.77297709,0.00013998,2]
[341969976,1731334247131,-500.0,0.00013998,2]
[341969977,1731334247141,-500.0,0.00013998,2]
[341969978,1731334247151,-500.0,0.00013998,2]
[341969979,1731334247160,-791.95,0.00013999,2]
[341969980,1731334247170,-791.95,0.00013999,2]
[341969981,1731334247179,-791.95,0.00013999,2]
[341969982,1731334247189,-791.95,0.00013999,2]
[341969983,1731334247199,-791.95,0.00013999,2]
[341969984,1731334247209,-791.95,0.00013999,2]
[341969985,1731334247219,-791.95,0.00013999,2]
[341969986,1731334247230,-791.95,0.00013999,2]
[341969987,1731334247240,-791.95,0.00013999,2]
[341969988,1731334247250,-791.95,0.00013999,2]
[341969989,1731334247265,-791.95,0.00013999,2]
[341969990,1731334247275,-791.95,0.00013999,2]
[341969991,1731334247284,-792.02967516,0.00013999,2]
[341969992,1731334247294,-500.0,0.00013999,2]
[341969993,1731334247304,-500.0,0.00013999,2]
[341969994,1731334247314,-500.0,0.00013999,2]
[341969995,1731334247323,-500.0,0.00013999,2]
[341969996,1731334247333,-500.0,0.00013999,2]
[341969997,1731334247343,-500.0,0.00013999,2]
[341969998,1731334247353,-326.5,0.00013999,2]
[341969999,1731334247363,-500.0,0.00013999,2]
[341970000,1731334247373,-500.0,0.00013999,2]
[341970001,1731334247382,-500.0,0.00013999,2]
[341970002,1731334247392,-588.42,0.00013999,2]
[341970003,1731334247401,-500.0,0.00013999,2]
[341970004,1731334247411,-500.0,0.00013999,2]
[341970005,1731334247420,-500.0,0.00013999,2]
[341970006,1731334247430,-500.0,0.00013999,2]
[341970007,1731334247439,-500.0,0.00013999,2]
[341970008,1731334247448,-500.0,0.00013999,2]
[341970009,1731334247457,-500.0,0.00013999,2]
[341970010,1731334247466,-500.0,0.00013999,2]
[341970011,1731334247476,-500.0,0.00013999,2]
[341970012,1731334247485,-500.0,0.00013999,2]
[341970013,1731334247494,-500.0,0.00013999,2]
[341970014,1731334247503,-500.0,0.00013999,2]
[341970015,1731334247516,-500.0,0.00013999,2]
[341970016,1731334247526,-500.08,0.00013999,2]
[341970017,1731334247535,-500.0,0.00013999,2]
[341970018,1731334247545,-500.08,0.00013999,2]
[341970019,1731334247554,-500.0,0.00013999,2]
[341970020,1731334247563,-500.08,0.00013999,2]
[341970021,1731334247572,-500.0,0.00013999,2]
[341970022,1731334247582,-500.0,0.00013999,2]
[341970023,1731334247591,-500.08,0.00013999,2]
[341970024,1731334247600,-500.0,0.00013999,2]
[341970025,1731334247609,-500.08,0.00013999,2]
[341970026,1731334247619,-500.0,0.00013999,2]
[341970027,1731334247628,-500.08,0.00013999,2]
[341970028,1731334247637,-500.0,0.00013999,2]
[341970029,1731334247646,-500.08,0.00013999,2]
[341970030,1731334247655,-500.0,0.00013999,2]
[341970031,1731334247665,-500.08,0.00013999,2]
[341970032,1731334247674,-500.0,0.00013999,2]
[341970033,1731334247683,-500.08,0.00013999,2]
[341970034,1731334247692,-500.0,0.00013999,2]
[341970035,1731334247702,-500.0,0.00013999,2]
[341970036,1731334247711,-500.08,0.00013999,2]
[341970037,1731334247721,-500.0,0.00013999,2]
[341970038,1731334247731,-500.08,0.00013999,2]
[341970039,1731334247740,-500.0,0.00013999,2]
[341970040,1731334247749,-500.08,0.00013999,2]
[341970041,1731334247764,-500.08,0.00013999,2]
[341970042,1731334247773,-500.0,0.00013999,2]
[341970043,1731334247783,-500.0,0.00013999,2]
[341970044,1731334247792,-500.08,0.00013999,2]
[341970045,1731334247802,-500.0,0.00013999,2]
[341970046,1731334247812,-500.08,0.00013999,2]
[341970047,1731334247821,-500.08,0.00013999,2]
[341970048,1731334247830,-500.08,0.00013999,2]
[341970049,1731334247840,-590.89064655,0.00013999,2]
[341970050,1731334247850,-500.08,0.00013999,2]
[341970051,1731334247860,-500.08,0.00013999,2]
[341970052,1731334247869,-500.08,0.00013999,2]
[341970053,1731334247878,-500.08911436,0.00013999,2]
[341970054,1731334247887,-500.0,0.00013999,2]
[341970055,1731334247896,-643.64,0.00013999,2]
[341970056,1731334247909,-5203.93,0.00013999,2]
[341970057,1731334247919,-5203.93,0.00013999,2]
[341970058,1731334247927,-5203.93,0.00013999,2]
[341970059,1731334247936,-5203.93,0.00013999,2]
[341970060,1731334247946,-5203.93,0.00013999,2]
[341970061,1731334247955,-5203.93,0.00013999,2]
[341970062,1731334247965,-5203.93,0.00013999,2]
[341970063,1731334247974,-500.0,0.00013999,2]
[341970064,1731334247983,-5203.93,0.00013999,2]
[341970065,1731334247993,-500.0,0.00013999,2]
[341970066,1731334248002,-500.0,0.00013999,2]
[341970067,1731334248019,-5203.93,0.00013999,2]
[341970068,1731334248028,-500.0,0.00013999,2]
[341970069,1731334248038,-5203.93,0.00013999,2]
[341970070,1731334248047,-500.0,0.00013999,2]
[341970071,1731334248057,-5203.93,0.00013999,2]
[341970072,1731334248067,-5203.93,0.00013999,2]
[341970073,1731334248077,-500.0,0.00013999,2]
[341970074,1731334248087,-5203.93,0.00013999,2]
[341970075,1731334248097,-500.0,0.00013999,2]
[341970076,1731334248107,-5203.93,0.00013999,2]
[341970077,1731334248116,-500.0,0.00013999,2]
[341970078,1731334248125,-500.0,0.00013999,2]
[341970079,1731334248134,-5203.93,0.00013999,2]
[341970080,1731334248143,-500.0,0.00013999,2]
[341970081,1731334248153,-5203.93,0.00013999,2]
[341970082,1731334248161,-500.0,0.00013999,2]
[341970083,1731334248171,-500.0,0.00013999,2]
[341970084,1731334248181,-5203.93,0.00013999,2]
[341970085,1731334248191,-5203.93,0.00013999,2]
[341970086,1731334248201,-5203.93,0.00013999,2]
[341970087,1731334248211,-5204.09183674,0.00013999,2]
[341970088,1731334248221,-500.0,0.00013999,2]
[341970089,1731334248231,-500.0,0.00013999,2]
[341970090,1731334248241,-500.0,0.00013999,2]
[341970091,1731334248250,-500.0,0.00013999,2]
[341970092,1731334248263,-558.01706985,0.00013999,2]
[341970093,1731334248273,-565.9,0.00013999,2]
[341970094,1731334248282,-565.9,0.00013999,2]
[341970095,1731334248292,-565.9,0.00013999,2]
[341970096,1731334248302,-565.9,0.00013999,2]
[341970097,1731334248311,-565.9,0.00013999,2]
[341970098,1731334248321,-565.9,0.00013999,2]
[341970099,1731334248330,-565.9,0.00013999,2]
[341970100,1731334248340,-565.9,0.00013999,2]
[341970101,1731334248349,-565.9,0.00013999,2]
[341970102,1731334248359,-565.9,0.00013999,2]
[341970103,1731334248369,-565.9,0.00013999,2]
[341970104,1731334248378,-565.9,0.00013999,2]
[341970105,1731334248388,-565.9,0.00013999,2]
[341970106,1731334248397,-565.9,0.00013999,2]
[341970107,1731334248406,-565.9,0.00013999,2]
[341970108,1731334248415,-565.9,0.00013999,2]
[341970109,1731334248424,-565.9,0.00013999,2]
[341970110,1731334248434,-565.9,0.00013999,2]
[341970111,1731334248443,-565.9,0.00013999,2]
[341970112,1731334248452,-565.98557603,0.00013999,2]
[341970113,1731334248462,-500.0,0.00013999,2]
[341970114,1731334248471,-460.3656473,0.00013999,2]
[341970115,1731334248480,-500.0,0.00013999,2]
[341970116,1731334248489,-500.0,0.00013999,2]
[341970117,1731334248499,-324.82486738,0.00013999,2]
[341970118,1731334248511,-500.0,0.00013999,2]
[341970119,1731334248520,-500.0,0.00013999,2]
[341970120,1731334248530,-500.0,0.00013999,2]
[341970121,1731334248539,-500.0,0.00013999,2]
[341970122,1731334248548,-192.18568855,0.00013999,2]
[341970123,1731334248558,-755.62,0.00013999,2]
[341970124,1731334248567,-755.62,0.00013999,2]
[341970125,1731334248578,-755.62,0.00013999,2]
[341970126,1731334248588,-755.62,0.00013999,2]
[341970127,1731334248598,-755.62,0.00013999,2]
[341970128,1731334248608,-755.62,0.00013999,2]
[341970129,1731334248618,-755.62,0.00013999,2]
[341970130,1731334248628,-755.62,0.00013999,2]
[341970131,1731334248638,-755.62,0.00013999,2]
[341970132,1731334248647,-755.62,0.00013999,2]
[341970133,1731334248658,-755.62,0.00013999,2]
[341970134,1731334248668,-755.62,0.00013999,2]
[341970135,1731334248679,-755.62,0.00013999,2]
[341970136,1731334248689,-755.62,0.00013999,2]
[341970137,1731334248698,-755.62,0.00013999,2]
[341970138,1731334248709,-755.62,0.00013999,2]
[341970139,1731334248718,-755.62,0.00013999,2]
[341970140,1731334248729,-755.62,0.00013999,2]
[341970141,1731334248739,-755.62,0.00013999,2]
[341970142,1731334248749,-755.63,0.00013999,2]
[341970143,1731334248765,-500.0,0.00013999,2]
[341970144,1731334248775,-500.0,0.00013999,2]
[341970145,1731334248786,-500.0,0.00013999,2]
[341970146,1731334248796,-500.0,0.00013999,2]
[341970147,1731334248807,-6840.0,0.00014,2]
[341970148,1731334248817,-481.0,0.00014,2]
[341970149,1731334248827,-13233627.75072039,0.00014,2]
[341970150,1731334249105,-1321.8896755,0.00014,2]
[341970151,1731334249118,-164178.02886888,0.00014,2]
[341970152,1731334249145,-500.0,0.00013698,2]
[341970153,1731334249155,-837.28850171,0.00014,2]
[341970154,1731334249294,-500.0,0.00013698,2]
[341970155,1731334249304,-372.27500004,0.00013698,2]
[341970156,1731334249476,-127.72499996,0.00013698,2]
[341970157,1731334249487,-500.0,0.00013698,2]
[341970158,1731334249497,-500.0,0.00013698,2]
[341970159,1731334249509,-500.0,0.00013698,2]
[341970160,1731334249520,-500.0,0.00013698,2]
[341970161,1731334249530,-500.0,0.00013698,2]
[341970162,1731334249540,-500.0,0.00013999,2]
[341970163,1731334249550,-500.0,0.00013999,2]
[341970164,1731334249560,-337.40012712,0.00013999,2]
[341970165,1731334249571,-28515.55660702,0.00014,2]
[341970166,1731334270992,-485.61457365,0.00013698,2]
[341970167,1731334397597,500.0,0.00025,120]
[341970168,1731334402724,2000.0,0.00025,120]
[341970169,1731334409339,500.0,0.00025,120]
[341970170,1731334413782,200.0,0.00025,120]
[341970174,1731334870772,27287.18974485,0.000127,7]
[341970175,1731334893228,8800.0,0.00016,10]
[341970176,1731334906729,8800.0,0.00016,12]
[341970177,1731334915166,8800.0,0.00016,14]
[341970178,1731334947828,1495.91,0.00010855,2]
[341970180,1731334997239,500.0,0.00024687,120]
[341970181,1731335001952,2000.0,0.00024687,120]
[341970182,1731335011820,200.0,0.00024687,120]
[341970183,1731335113530,698.65,0.00010959,2]
[341970184,1731335120636,4628.55515789,9e-05,2]
[341970185,1731335137627,91.98484211,9e-05,2]
[341970186,1731335137651,7163.17154588,9e-05,2]
[341970187,1731335137678,9352.46136271,9e-05,2]
[341970188,1731335145004,698.64,0.00010959,2]
[341970193,1731335239770,6840.0,0.00012,2]
[341970204,1731335318929,990.44,0.00012149,2]
[341970205,1731335326597,900.0,0.0001,2]
[341970230,1731335428754,597.76,8.219e-05,2]
[341970231,1731335429157,597.76,0.00011644,2]
[341970263,1731335432473,-7947.55872433,0.00012154,2]
[341970264,1731335432486,-2038.93095052,0.00012154,2]
[341970265,1731335432497,-4109.68893146,0.00012154,2]
[341970266,1731335432509,-9803.82139369,0.00012154,2]
[341970267,1731335432518,-327.64,0.00012221,2]
[341970268,1731335432529,-168.17,0.00012293,2]
[341970269,1731335432539,-26371.8,0.00012329,2]
[341970270,1731335432548,-1000.0,0.00012449,2]
[341970271,1731335432558,-2045.97051651,0.00012449,2]
[341970272,1731335432568,-156.978697,0.0001248,2]
[341970273,1731335432578,-150.0,0.00012499,2]
[341970274,1731335432587,-9650.0,0.000125,2]
[341970275,1731335432597,-17200.0,0.000125,2]
[341970276,1731335432607,-250.0,0.0001259,2]
[341970277,1731335432616,-250.0,0.00012763,2]
[341970278,1731335432626,-478.64,0.00012763,2]
[341970279,1731335432636,-13324.13,0.00012763,2]
[341970280,1731335432648,-1530.53,0.00012763,2]
[341970281,1731335432658,-5241.28,0.00012786,2]
[341970282,1731335432667,-1797.61120695,0.000128,2]
[341970283,1731335432677,-394.73,0.000128,2]
[341970285,1731335432686,-1876.08,0.00012812,2]
[341970287,1731335432695,-1415.66,0.00012827,2]
[341970289,1731335432704,-435.5,0.00012859,2]
[341970291,1731335432713,-894.30714177,0.00012896,2]
[341970292,1731335432723,-281.58492442,0.00012896,2]
[341970294,1731335432732,-894.30714174,0.00012899,2]
[341970297,1731335432742,-161777.2479,0.000129,2]
[341970298,1731335432751,-894.30714174,0.00012902,2]
[341970300,1731335432760,-894.30714174,0.00012905,2]
[341970302,1731335432769,-281.5849244,0.00012907,2]
[341970304,1731335432778,-168.17,0.00012908,2]
[341970306,1731335432787,-894.30714174,0.00012909,2]
[341970308,1731335432796,-894.30714174,0.00012912,2]
[341970310,1731335432805,-894.30714174,0.00012915,2]
[341970311,1731335432815,-281.5849244,0.00012918,2]
[341970312,1731335432824,-894.30714174,0.00012918,2]
[341970313,1731335432833,-1475.29006078,0.00012918,2]
[341970314,1731335432842,-23651.65488572,0.00012918,2]
[341970315,1731335432851,-501.31951194,0.00012973,2]
[341970316,1731335432861,-500.0,0.00012973,2]
[341970317,1731335432871,-500.0,0.00012973,2]
[341970318,1731335432880,-500.0,0.00012973,2]
[341970319,1731335432891,-176.32943313,0.0001298,2]
[341970320,1731335432901,-180.38947679,0.00012989,2]
[341970321,1731335432910,-500.0,0.00012989,2]
[341970322,1731335432920,-416.44843035,0.00012989,2]
[341970323,1731335432930,-500.0,0.00012989,2]
[341970324,1731335432940,-500.0,0.00012989,2]
[341970325,1731335432949,-437.45239994,0.00012989,2]
[341970326,1731335432959,-330.48866657,0.00012989,2]
[341970327,1731335432968,-647780.01088465,0.0001299,2]
[341970328,1731335432978,-176.32943313,0.0001299,2]
[341970329,1731335432987,-176.32943313,0.0001299,2]
[341970330,1731335432997,-58156.262616,0.00012996,2]
[341970331,1731335433007,-174.56302169,0.00012999,2]
[341970332,1731335433016,-171.33232519,0.00012999,2]
[341970333,1731335433025,-500.0,0.00012999,2]
[341970334,1731335433035,-500.0,0.00012999,2]
[341970335,1731335433045,-500.0,0.00012999,2]
[341970336,1731335433054,-500.0,0.00012999,2]
[341970337,1731335433063,-500.0,0.00012999,2]
[341970338,1731335433073,-263.8877037,0.00012999,2]
[341970339,1731335433082,-500.0,0.00012999,2]
[341970340,1731335433092,-500.0,0.00012999,2]
[341970341,1731335433102,-500.0,0.00012999,2]
[341970342,1731335433112,-500.0,0.00012999,2]
[341970343,1731335433121,-29769.19151637,0.00012999,2]
[341970344,1731335433132,-105042.58065051,0.00012999,2]
[341970345,1731335433146,-195.74826876,0.00013,2]
[341970346,1731335433156,-3906507.66335941,0.00013,2]
[341970347,1731335433201,-411698.69175883,0.00013,2]
[341970348,1731335433348,-4122.34708613,0.00013,2]
[341970351,1731335438209,-160.44071546,0.00012973,2]
[341970352,1731335438219,-113.73528454,0.00013,2]
[341970353,1731335438434,-8087.31326128,0.00013,2]
[341970354,1731335438444,-5815.93354963,0.00013,2]
[341970355,1731335438549,-13983342.6022681,0.00013,2]
[341970385,1731335440306,-1092.70366823,0.00013,2]
[341970386,1731335440326,-547.52749393,0.00013,2]
[341970387,1731335440685,-1559.80161734,0.00013,2]
[341970388,1731335440696,-713.61627737,0.00013,2]
[341970389,1731335440732,-991.76342095,0.00013,2]
[341970390,1731335440744,-332.54659203,0.00013,2]
[341970391,1731335440779,-405.02824387,0.00013,2]
[341970399,1731335443406,-530.72536016,0.00013,2]
[341970400,1731335443940,-250.69,0.00012998,2]
[341970401,1731335443992,-249.31,0.00012998,2]
[341970402,1731335444002,-4177.57633819,0.00013,2]
[341970403,1731335444014,-499.08825217,0.00013,2]
[341970404,1731335444041,-449.242,0.00013,2]
[341970405,1731335444053,-4041.36,0.00013,2]
[341970614,1731335446335,-500.0,0.00012998,2]
[341970616,1731335446344,-500.0,0.00012998,2]
[341970618,1731335446355,-500.0,0.00012998,2]
[341970619,1731335446364,-500.0,0.00012998,2]
[341970622,1731335446374,-500.0,0.00012998,2]
[341970623,1731335446386,-454.65402022,0.00012998,2]
[341970625,1731335446396,-1137.89597978,0.00013,2]
[341970644,1731335446590,-154607.95339418,0.00013,2]
[341970697,1731335598421,500.0,0.00024687,120]
[341970698,1731335602510,2000.0,0.00024687,120]
[341970699,1731335768479,1421.11,0.00010707,2]
[341970702,1731335991334,-350.0,0.00013,3]
[341970703,1731335996544,-250.0,0.00012437,2]
[341970704,1731335996567,-194.58,0.00012493,2]
[341970705,1731335996589,-250.0,0.00012554,2]
[341970706,1731335996610,-200.0,0.00012593,2]